fUSD/lending_fUSD_20260606
["ID","MTS","AMOUNT","RATE_DAILY","PERIOD"]
[424254262,1780705900000,-196.858265,0.00037808,30]
[424254264,1780705900000,-196.858265,0.00037808,30]
[424254269,1780705900000,-641.0,0.00037816,13]
[424254266,1780705900000,-196.858265,0.00037808,30]
[424254250,1780705900000,-286.546088,0.00037808,30]
[424254249,1780705900000,-151.0,0.00037808,30]
[424254255,1780705900000,-151.0,0.00037808,30]
[424254267,1780705900000,-196.858265,0.00037808,30]
[424254258,1780705900000,-151.0,0.00037808,30]
[424254253,1780705900000,-286.546088,0.00037808,30]
[424254268,1780705900000,-159.1052155,0.00037815,2]
[424254252,1780705900000,-151.0,0.00037808,30]
[424254270,1780705900000,-5000.0,0.00037831,7]
[424254259,1780705900000,-196.858265,0.00037808,30]
[424254256,1780705900000,-286.546088,0.00037808,30]
[424254261,1780705900000,-258.35355,0.00037808,30]
[424254265,1780705900000,-196.858265,0.00037808,30]
[424254254,1780705900000,-196.858265,0.00037808,30]
[424254263,1780705900000,-286.54609,0.00037808,30]
[424254260,1780705900000,-286.546088,0.00037808,30]
[424254271,1780705900000,-228.23,0.00037839,80]
[424254273,1780705900000,-5000.0,0.00037841,2]
[424254274,1780705900000,-1592.0,0.00037849,11]
[424254288,1780705900000,-180.124574,0.000379,20]
[424254285,1780705900000,-150.0,0.00037899,120]
[424254317,1780705900000,-18495.70618945,0.00038,10]
[424254344,1780705900000,-2532.0,0.00038,120]
[424254289,1780705900000,-209.192357,0.000379,20]
[424254305,1780705900000,-5000.0,0.00037976,7]
[424254323,1780705900000,-1019.0,0.00038,2]
[424254286,1780705900000,-637.3216458,0.000379,30]
[424254315,1780705900000,-39815.9,0.00038,10]
[424254328,1780705900000,-845.00952151,0.00038,2]
[424254340,1780705900000,-60000.0,0.00038,60]
[424254355,1780705900000,-850.0,0.00038,2]
[424254363,1780705900000,-150.0,0.00038036,30]
[424254367,1780705900000,-150.0,0.00038044,120]
[424254348,1780705900000,-10096.2,0.00038,7]
[424254352,1780705900000,-747.0,0.00038,2]
[424254354,1780705900000,-233.63874287,0.00038,2]
[424254349,1780705900000,-10000.0,0.00038,7]
[424254357,1780705900000,-5000.0,0.00038005,7]
[424254360,1780705900000,-159.1052155,0.00038015,2]
[424254368,1780705900000,-150.0,0.00038044,120]
[424254358,1780705900000,-150.0,0.00038007,120]
[424254362,1780705900000,-5000.0,0.00038034,7]
[424254366,1780705900000,-1774.12734203,0.00038036,30]
[424254347,1780705900000,-10000.0,0.00038,7]
[424254353,1780705900000,-2568.0,0.00038,120]
[424254359,1780705900000,-637.3216458,0.00038011,30]
[424254364,1780705900000,-3091.59014074,0.00038036,30]
[424254351,1780705900000,-166.66227481,0.00038,120]
[424254361,1780705900000,-5000.0,0.00038034,2]
[424254365,1780705900000,-150.0,0.00038036,30]
[424254350,1780705900000,-337.448621,0.00038,20]
[424254356,1780705900000,-1061.0,0.00038,7]
[424254316,1780705900000,-168854.39686211,0.00038,2]
[424254333,1780705900000,-880.79,0.00038,14]
[424254327,1780705900000,-150.0,0.00038,5]
[424254369,1780705900000,-158.0881482,0.00038045,2]
[424254298,1780705900000,-5000.0,0.00037937,2]
[424254319,1780705900000,-10100.0,0.00038,90]
[424254321,1780705900000,-191000.0,0.00038,120]
[424254324,1780705900000,-26317.72896677,0.00038,20]
[424254335,1780705900000,-6300.49,0.00038,60]
[424254337,1780705900000,-151.0,0.00038,120]
[424254339,1780705900000,-1016.3812962,0.00038,120]
[424254346,1780705900000,-10000.0,0.00038,7]
[424254276,1780705900000,-385.34851583,0.00037852,2]
[424254301,1780705900000,-42850.00450359,0.00037957,2]
[424254314,1780705900000,-50000.0,0.00038,43]
[424254334,1780705900000,-45344.60238384,0.00038,10]
[424254272,1780705900000,-32862.79354471,0.0003784,2]
[424254295,1780705900000,-500.0,0.00037915,30]
[424254304,1780705900000,-253.27,0.00037975,120]
[424254300,1780705900000,-150.0,0.00037948,120]
[424254281,1780705900000,-228.23,0.00037869,100]
[424254343,1780705900000,-1000.0,0.00038,60]
[424254310,1780705900000,-150.0,0.00037996,120]
[424254318,1780705900000,-1351.29760761,0.00038,15]
[424254291,1780705900000,-228.23,0.000379,120]
[424254279,1780705900000,-574.89336221,0.0003786,120]
[424254331,1780705900000,-684.81445313,0.00038,2]
[424254330,1780705900000,-10000.0,0.00038,2]
[424254312,1780705900000,-151.0,0.00037999,30]
[424254307,1780705900000,-6587.33586308,0.0003799,5]
[424254297,1780705900000,-5000.0,0.00037918,7]
[424254278,1780705900000,-1592.0,0.00037859,11]
[424254320,1780705900000,-5300.36626848,0.00038,3]
[424254425,1780705901000,-5000.0,0.00038207,7]
[424254423,1780705901000,-176.0,0.00038202,30]
[424254411,1780705901000,-500.0,0.00038196,60]
[424254426,1780705901000,-159.1052155,0.00038215,2]
[424254427,1780705901000,-465.39033176,0.00038216,2]
[424254415,1780705901000,-1668.57,0.000382,48]
[424254410,1780705901000,-500.0,0.00038196,60]
[424254400,1780705901000,-250.0,0.00038174,2]
[424254395,1780705901000,-150.0,0.0003814,120]
[424254393,1780705901000,-4071.0,0.00038125,30]
[424254429,1780705901000,-1614.13475979,0.00038224,2]
[424254424,1780705901000,-150.0,0.00038207,120]
[424254412,1780705901000,-500.0,0.00038196,60]
[424254413,1780705901000,-500.0,0.00038196,60]
[424254408,1780705901000,-500.0,0.00038196,60]
[424254406,1780705901000,-500.0,0.00038196,60]
[424254419,1780705901000,-1450.48222787,0.000382,120]
[424254416,1780705901000,-1746.34865,0.000382,120]
[424254407,1780705901000,-500.0,0.00038196,60]
[424254409,1780705901000,-500.0,0.00038196,60]
[424254422,1780705901000,-1496.65364586,0.000382,120]
[424254414,1780705901000,-534.40820502,0.00038196,60]
[424254418,1780705901000,-1422.88445344,0.000382,120]
[424254417,1780705901000,-1059.83107088,0.000382,120]
[424254405,1780705901000,-500.0,0.00038196,60]
[424254397,1780705901000,-5000.0,0.00038174,2]
[424254420,1780705901000,-1689.89123066,0.000382,120]
[424254403,1780705901000,-5000.0,0.00038178,7]
[424254389,1780705901000,-3765.88336791,0.00038122,2]
[424254402,1780705901000,-250.0,0.00038174,2]
[424254421,1780705901000,-1617.55971657,0.000382,120]
[424254376,1780705901000,-1898.0,0.000381,30]
[424254392,1780705901000,-1912.01922838,0.00038122,2]
[424254372,1780705901000,-208.84,0.0003809,93]
[424254373,1780705901000,-5000.0,0.00038092,7]
[424254388,1780705901000,-1482.85642051,0.00038122,2]
[424254371,1780705901000,-150.0,0.00038066,120]
[424254379,1780705901000,-150.0,0.00038107,120]
[424254390,1780705901000,-3270.63739639,0.00038122,2]
[424254391,1780705901000,-1634.64079672,0.00038122,2]
[424254374,1780705901000,-150.0,0.00038092,120]
[424254386,1780705901000,-3449.37159578,0.00038122,2]
[424254387,1780705901000,-1485.41412397,0.00038122,2]
[424254399,1780705901000,-5000.0,0.00038174,2]
[424254384,1780705901000,-2946.29512042,0.00038122,2]
[424254380,1780705901000,-300.0,0.00038115,49]
[424254383,1780705901000,-637.3216458,0.00038121,30]
[424254377,1780705901000,-2000.0,0.000381,38]
[424254381,1780705901000,-159.1052155,0.00038115,2]
[424254385,1780705901000,-1473.21581737,0.00038122,2]
[424254382,1780705901000,-5000.0,0.00038121,7]
[424254375,1780705901000,-811.9428694,0.000381,33]
[424254378,1780705901000,-293.66731404,0.000381,30]
[424254394,1780705901000,-5000.0,0.0003813,2]
[424254404,1780705901000,-150.0,0.00038188,120]
[424254401,1780705901000,-250.0,0.00038174,2]
[424254396,1780705901000,-5000.0,0.00038149,7]
[424254398,1780705901000,-5000.0,0.00038174,2]
[424254370,1780705901000,-5000.0,0.00038063,7]
[424254430,1780705901000,-1524.70280508,0.00038224,2]
[424254428,1780705901000,-1353.10790657,0.00038224,2]
[424254441,1780705901000,-12872.4,0.0003828,9]
[424254460,1780705901000,-530.12183621,0.00038356,30]
[424254461,1780705901000,-172.0,0.00038356,120]
[424254462,1780705901000,-2110.0,0.00038356,2]
[424254471,1780705901000,-1553.0,0.00038356,30]
[424254477,1780705901000,-433.7671701,0.00038356,2]
[424254468,1780705901000,-667.7,0.00038356,120]
[424254474,1780705901000,-1000.0,0.00038356,120]
[424254470,1780705901000,-1062.77,0.00038356,30]
[424254481,1780705901000,-1424.71,0.00038363,120]
[424254469,1780705901000,-1071.68,0.00038356,120]
[424254480,1780705901000,-2000.0,0.00038363,120]
[424254475,1780705901000,-27495.32,0.00038356,14]
[424254476,1780705901000,-216.88358505,0.00038356,2]
[424254472,1780705901000,-699.03,0.00038356,30]
[424254473,1780705901000,-845.62,0.00038356,30]
[424254479,1780705901000,-867.5343402,0.00038356,2]
[424254478,1780705901000,-650.65075515,0.00038356,2]
[424254483,1780705901000,-242.57,0.00038363,120]
[424254485,1780705901000,-2878.82101092,0.00038373,33]
[424254484,1780705901000,-300.0,0.00038371,50]
[424254486,1780705901000,-280.0,0.0003838,120]
[424254482,1780705901000,-460.06,0.00038363,120]
[424254487,1780705901000,-150.0,0.00038381,120]
[424254490,1780705901000,-500.0,0.00038399,30]
[424254488,1780705901000,-200.0,0.00038399,30]
[424254489,1780705901000,-151.0,0.00038399,30]
[424254491,1780705901000,-392510.97867383,0.000384,120]
[424254464,1780705901000,-402.25302629,0.00038356,30]
[424254459,1780705901000,-1694.61,0.00038356,2]
[424254463,1780705901000,-576.89,0.00038356,7]
[424254453,1780705901000,-2626.0,0.00038323,2]
[424254431,1780705901000,-1388.65147344,0.00038224,2]
[424254440,1780705901000,-152.21,0.00038274,9]
[424254434,1780705901000,-5000.0,0.00038236,7]
[424254439,1780705901000,-236325.36,0.00038274,9]
[424254433,1780705901000,-637.32164579,0.00038232,30]
[424254437,1780705901000,-163.0,0.0003824,120]
[424254438,1780705901000,-5000.0,0.00038265,7]
[424254432,1780705901000,-5000.0,0.00038227,2]
[424254435,1780705901000,-150.0,0.00038236,120]
[424254443,1780705901000,-1262.79580771,0.00038286,120]
[424254444,1780705901000,-299.50806145,0.00038286,120]
[424254446,1780705901000,-2000.0,0.000383,52]
[424254458,1780705901000,-641.0,0.0003835,14]
[424254449,1780705901000,-150.0,0.00038307,120]
[424254436,1780705901000,-42000.0,0.0003824,15]
[424254454,1780705901000,-403.48,0.00038323,7]
[424254457,1780705901000,-637.32164579,0.00038342,30]
[424254467,1780705901000,-722.22,0.00038356,120]
[424254466,1780705901000,-7910.12,0.00038356,14]
[424254465,1780705901000,-287.99,0.00038356,120]
[424254448,1780705901000,-150.0,0.00038303,120]
[424254456,1780705901000,-150.0,0.00038333,120]
[424254455,1780705901000,-177.19523279,0.00038329,120]
[424254442,1780705901000,-150.0,0.00038285,120]
[424254452,1780705901000,-459.0,0.00038322,5]
[424254451,1780705901000,-158.0881482,0.00038319,2]
[424254450,1780705901000,-3305.3365191,0.00038307,30]
[424254447,1780705901000,-150.0,0.00038303,120]
[424254445,1780705901000,-5000.0,0.00038294,7]
[424254492,1780705902000,-9101.46193958,0.000384,120]
[424254493,1780705903000,-2870.60924373,0.000106,2]
[424254494,1780705903000,-275.14764415,0.000106,2]
[424254496,1780705903000,-2369.85871908,0.00011099,2]
[424254498,1780705903000,-3200.30000002,0.00011099,2]
[424254495,1780705903000,-72.58320459,0.000106,2]
[424254497,1780705903000,-5090.49999987,0.00011099,2]
[424254502,1780706016000,572.61,0.00029986,120]
[424254503,1780706017000,572.61,0.00029836,120]
[424254504,1780706018000,736.21,0.00029986,120]
[424254517,1780706290000,200.0,9.8e-05,3]
[424254518,1780706292000,400.0,9.9e-05,3]
[424254519,1780706294000,600.0,0.0001,3]
[424254523,1780706435000,197.6640038,0.0003013,120]
[424254530,1780706555000,878.55,0.00029018,120]
[424254529,1780706555000,878.55,0.00028858,120]
[424254533,1780706556000,878.55,0.00029018,120]
[424254532,1780706556000,878.55,0.00029018,120]
[424254531,1780706556000,878.55,0.00029018,120]
[424254534,1780706557000,878.55,0.00029018,120]
[424254535,1780706557000,878.61127567,0.00029018,120]
[424254536,1780706633000,957.83,0.00030082,120]
[424254537,1780706645000,150.0,8.269e-05,2]
[424254538,1780706726000,155.13,7.153e-05,2]
[424254540,1780706727000,120.19218629,8.047e-05,2]
[424254539,1780706727000,34.93781371,8.047e-05,2]
[424254543,1780706754000,675.03,0.00029018,120]
[424254542,1780706754000,675.03,0.00029018,120]
[424254541,1780706754000,675.03,0.00028858,120]
[424254546,1780706755000,675.03,0.00029018,120]
[424254545,1780706755000,675.03,0.00029018,120]
[424254544,1780706755000,675.03,0.00029018,120]
[424254547,1780706756000,675.14722162,0.00029018,120]
[424254548,1780706760000,1409.6453227,0.00030136,120]
[424254549,1780706790000,688.17,0.00028941,120]
[424254550,1780706792000,688.17,0.00029018,120]
[424254552,1780706792000,688.17,0.00029018,120]
[424254551,1780706792000,688.17,0.00029018,120]
[424254555,1780706793000,688.28261394,0.00029018,120]
[424254554,1780706793000,688.17,0.00029018,120]
[424254553,1780706793000,688.17,0.00029018,120]
[424254559,1780706842000,700.0,9.7e-05,3]
[424254560,1780706845000,1500.0,9.8e-05,3]
[424254561,1780706847000,2300.0,9.9e-05,3]
[424254562,1780706849000,3100.0,0.0001,3]
[424254563,1780706861000,1000.0,0.0003013,120]
[424254565,1780706897000,150.0,8.696e-05,7]
[424254564,1780706897000,150.0,8.525e-05,7]
[424254567,1780706898000,150.0,8.951e-05,7]
[424254566,1780706898000,294.53570639,8.525e-05,7]
[424254569,1780706899000,294.53570639,8.696e-05,7]
[424254568,1780706899000,150.0,9.207e-05,7]
[424254571,1780706899000,153.35754342,9.548e-05,7]
[424254570,1780706899000,415.9947102,8.525e-05,7]
[424254573,1780706900000,415.9947102,8.696e-05,7]
[424254572,1780706900000,294.53570639,8.951e-05,7]
[424254574,1780706901000,415.9947102,8.951e-05,7]
[424254576,1780706902000,415.9947102,9.207e-05,7]
[424254575,1780706902000,294.53570639,9.207e-05,7]
[424254578,1780706902000,294.5357064,9.548e-05,7]
[424254579,1780706902000,415.99471023,9.548e-05,7]
[424254577,1780706902000,1000.0,0.0003013,120]
[424254580,1780706942000,-543.0739482,8.525e-05,2]
[424254581,1780706943000,-318.26439041,8.525e-05,2]
[424254583,1780706943000,-288.80874814,8.647e-05,2]
[424254582,1780706943000,-591.09510157,8.525e-05,2]
[424254584,1780706943000,-250.0,8.769e-05,2]
[424254587,1780706943000,-3530.4759561,8.922e-05,2]
[424254586,1780706943000,-195.8040439,8.922e-05,2]
[424254585,1780706943000,-2000.0,8.867e-05,2]
[424254589,1780706943000,-150.0,8.963e-05,2]
[424254590,1780706943000,-351.44027612,8.963e-05,2]
[424254591,1780706943000,-148.55972388,8.963e-05,2]
[424254592,1780706943000,-500.0,8.963e-05,2]
[424254593,1780706943000,-500.0,8.963e-05,2]
[424254594,1780706943000,-335.04274745,8.963e-05,2]
[424254588,1780706943000,-155.13,8.941e-05,2]
[424254601,1780706963000,152.0,0.00030017,120]
[424254604,1780706966000,-500.0,8.963e-05,2]
[424254603,1780706966000,-171.7,8.963e-05,2]
[424254605,1780706966000,-500.0,8.963e-05,2]
[424254602,1780706966000,-164.95725255,8.963e-05,2]
[424254606,1780706966000,-418.23580853,8.963e-05,2]
[424254608,1780706966000,-380.39186677,8.963e-05,2]
[424254610,1780706966000,-500.0,8.963e-05,2]
[424254609,1780706966000,-500.0,8.963e-05,2]
[424254607,1780706966000,-500.0,8.963e-05,2]
[424254611,1780706967000,-500.0,8.963e-05,2]
[424254612,1780706967000,-248.91520308,8.963e-05,2]
[424254615,1780706967000,-568.79134001,8.963e-05,2]
[424254613,1780706967000,-251.08479692,8.963e-05,2]
[424254617,1780706967000,-500.0,8.963e-05,2]
[424254616,1780706967000,-500.0,8.963e-05,2]
[424254618,1780706967000,-63.08981816,8.963e-05,2]
[424254614,1780706967000,-500.0,8.963e-05,2]
[424254619,1780706985000,152.0,0.0002999,120]
[424254620,1780706986000,152.0,0.0002999,120]
[424254624,1780706992000,-500.0,8.963e-05,2]
[424254621,1780706992000,-436.91018184,8.963e-05,2]
[424254622,1780706992000,-500.0,8.963e-05,2]
[424254623,1780706992000,-500.0,8.963e-05,2]
[424254629,1780706992000,-500.0,8.963e-05,2]
[424254626,1780706992000,-500.0,8.963e-05,2]
[424254627,1780706992000,-500.0,8.963e-05,2]
[424254628,1780706992000,-500.0,8.963e-05,2]
[424254630,1780706992000,-82.63327081,8.963e-05,2]
[424254625,1780706992000,-500.0,8.963e-05,2]
[424254634,1780706994000,-2464.19796021,8.965e-05,2]
[424254632,1780706994000,-500.0,8.963e-05,2]
[424254633,1780706994000,-205.27606576,8.964e-05,2]
[424254631,1780706994000,-86.48878928,8.963e-05,2]
[424254635,1780707017000,150.0,8.525e-05,7]
[424254636,1780707019000,150.0,8.696e-05,7]
[424254638,1780707019000,150.0,9.207e-05,7]
[424254637,1780707019000,150.0,8.951e-05,7]
[424254640,1780707020000,150.0,9.548e-05,7]
[424254639,1780707020000,150.0,9.548e-05,7]
[424254642,1780707021000,150.0,9.548e-05,7]
[424254641,1780707021000,150.0,9.548e-05,7]
[424254643,1780707022000,287.6409312,9.548e-05,7]
[424254651,1780707031000,-467.39260323,9.073e-05,2]
[424254648,1780707031000,-500.0,9.013e-05,2]
[424254647,1780707031000,-4088.86203979,8.965e-05,2]
[424254649,1780707031000,-1000.0,9.017e-05,2]
[424254650,1780707031000,-443.32031354,9.073e-05,2]
[424254652,1780707031000,-356.02,9.138e-05,2]
[424254653,1780707031000,-180.82,9.252e-05,2]
[424254656,1780707031000,-352.35398899,9.33e-05,2]
[424254655,1780707031000,-5507.48,9.325e-05,2]
[424254654,1780707031000,-300.0,9.324e-05,2]
[424254658,1780707031000,-294.81,9.527e-05,2]
[424254657,1780707031000,-1560.56,9.527e-05,2]
[424254659,1780707031000,-1575.75,9.57e-05,2]
[424254660,1780707031000,-340.4253424,9.637e-05,2]
[424254665,1780707032000,-333.74878659,9.637e-05,2]
[424254664,1780707032000,-513.70767928,9.637e-05,2]
[424254661,1780707032000,-500.0,9.637e-05,2]
[424254663,1780707032000,-331.32597471,9.637e-05,2]
[424254662,1780707032000,-500.0,9.637e-05,2]
[424254667,1780707032000,-500.0,9.637e-05,2]
[424254666,1780707032000,-423.64508328,9.637e-05,2]
[424254668,1780707032000,-500.0,9.637e-05,2]
[424254670,1780707032000,-1000.0,9.651e-05,2]
[424254672,1780707032000,-55239.32492456,9.669e-05,2]
[424254671,1780707032000,-106471.13155374,9.669e-05,2]
[424254673,1780707032000,-52253.21265478,9.669e-05,2]
[424254676,1780707032000,-2392.88125,9.669e-05,2]
[424254669,1780707032000,-500.0,9.638e-05,2]
[424254731,1780707038000,-151.0,0.00010359,2]
[424254735,1780707038000,-213.0,0.00010362,2]
[424254726,1780707038000,-479.35874711,0.00010262,2]
[424254729,1780707038000,-180.82,0.0001028,2]
[424254728,1780707038000,-4000.0,0.00010278,2]
[424254734,1780707038000,-150.0,0.00010362,2]
[424254733,1780707038000,-250.0,0.00010361,2]
[424254748,1780707038000,-180.82,0.00010794,2]
[424254738,1780707038000,-500.0,0.00010421,2]
[424254724,1780707038000,-2844.78214031,0.00010262,2]
[424254736,1780707038000,-302.46,0.00010362,2]
[424254739,1780707038000,-215.77576141,0.00010467,2]
[424254740,1780707038000,-160.0,0.00010473,2]
[424254750,1780707038000,-433.0,0.00010845,2]
[424254746,1780707038000,-4000.0,0.00010779,2]
[424254737,1780707038000,-357.3671277,0.00010362,2]
[424254730,1780707038000,-151.0,0.00010359,2]
[424254732,1780707038000,-150.0,0.00010361,2]
[424254723,1780707038000,-309.23169989,0.00010262,2]
[424254715,1780707038000,-2000.0,9.975e-05,2]
[424254719,1780707038000,-500.0,0.00010147,2]
[424254743,1780707038000,-198.65,0.00010661,2]
[424254703,1780707038000,-4063.64,9.669e-05,2]
[424254704,1780707038000,-2279579.80961692,9.669e-05,2]
[424254708,1780707038000,-912.78,9.769e-05,2]
[424254707,1780707038000,-180.82,9.766e-05,2]
[424254709,1780707038000,-155.13,9.835e-05,2]
[424254706,1780707038000,-200.0,9.744e-05,2]
[424254705,1780707038000,-150.0,9.669e-05,2]
[424254722,1780707038000,-655.43590005,0.00010262,2]
[424254710,1780707038000,-255.0,9.859e-05,2]
[424254721,1780707038000,-420.0,0.00010256,2]
[424254712,1780707038000,-250.0,9.862e-05,2]
[424254717,1780707038000,-4000.0,0.00010027,2]
[424254714,1780707038000,-64321.60723118,9.873e-05,2]
[424254713,1780707038000,-500.0,9.873e-05,2]
[424254716,1780707038000,-187.04085736,0.0001,2]
[424254720,1780707038000,-4549.78011941,0.000102,2]
[424254718,1780707038000,-2421.24,0.0001013,2]
[424254711,1780707038000,-250.0,9.859e-05,2]
[424254744,1780707038000,-500.0,0.00010695,2]
[424254757,1780707038000,-4550.15,0.00010959,2]
[424254742,1780707038000,-4000.0,0.00010529,2]
[424254767,1780707038000,-2000.0,0.00011083,2]
[424254772,1780707038000,-150.0,0.00011233,2]
[424254775,1780707038000,-299.99,0.00011281,2]
[424254771,1780707038000,-227.09,0.0001122,2]
[424254770,1780707038000,-55280.01205777,0.00011099,2]
[424254779,1780707038000,-300.0,0.00011282,2]
[424254781,1780707038000,-166.66,0.0001168,2]
[424254780,1780707038000,-180.82,0.00011309,2]
[424254769,1780707038000,-292.76004923,0.00011099,2]
[424254788,1780707038000,-34496.62,0.00012055,2]
[424254784,1780707038000,-180.82,0.00011823,2]
[424254785,1780707038000,-250.0,0.00011843,2]
[424254790,1780707038000,-2000.0,0.00012192,2]
[424254789,1780707038000,-166.66,0.00012066,2]
[424254786,1780707038000,-736.0,0.0001193,2]
[424254787,1780707038000,-173.77634288,0.00012027,2]
[424254791,1780707038000,-957.83,0.00012329,2]
[424254745,1780707038000,-155.13,0.00010729,2]
[424254782,1780707038000,-8202.40349882,0.000117,2]
[424254773,1780707038000,-150.99,0.00011281,2]
[424254783,1780707038000,-55280.01205774,0.00011784,2]
[424254778,1780707038000,-9999.99,0.00011281,2]
[424254741,1780707038000,-17905.56,0.00010475,2]
[424254765,1780707038000,-152.0,0.00011035,2]
[424254751,1780707038000,-308.92627039,0.00010857,2]
[424254755,1780707038000,-500.0,0.00010958,3]
[424254753,1780707038000,-7378.77872172,0.000109,2]
[424254754,1780707038000,-500.0,0.00010958,2]
[424254759,1780707038000,-150.0,0.00010959,2]
[424254760,1780707038000,-414.25167571,0.00010969,2]
[424254762,1780707038000,-150.0,0.00010989,2]
[424254756,1780707038000,-500.0,0.00010958,4]
[424254758,1780707038000,-150.0,0.00010959,2]
[424254763,1780707038000,-301.29,0.00010989,2]
[424254764,1780707038000,-4000.0,0.0001103,2]
[424254774,1780707038000,-9999.99,0.00011281,2]
[424254766,1780707038000,-173.77634289,0.00011043,2]
[424254777,1780707038000,-3136.29,0.00011281,2]
[424254776,1780707038000,-488.18,0.00011281,2]
[424254761,1780707038000,-351.87,0.00010989,2]
[424254768,1780707038000,-152.0,0.00011089,2]
[424254838,1780707039000,-613.0,0.00013425,2]
[424254836,1780707039000,-625.0,0.00013425,2]
[424254835,1780707039000,-613.0,0.00013425,2]
[424254833,1780707039000,-625.0,0.00013425,2]
[424254831,1780707039000,-500.0,0.00013425,2]
[424254822,1780707039000,-500.0,0.00013425,2]
[424254826,1780707039000,-150.0,0.00013425,2]
[424254818,1780707039000,-625.0,0.00013425,2]
[424254824,1780707039000,-613.0,0.00013425,2]
[424254842,1780707039000,-625.0,0.00013425,2]
[424254825,1780707039000,-625.0,0.00013425,2]
[424254820,1780707039000,-613.0,0.00013425,2]
[424254834,1780707039000,-500.0,0.00013425,2]
[424254841,1780707039000,-500.0,0.00013425,2]
[424254857,1780707039000,-150.0,0.00013425,2]
[424254839,1780707039000,-625.0,0.00013425,2]
[424254840,1780707039000,-613.0,0.00013425,2]
[424254844,1780707039000,-500.0,0.00013425,2]
[424254837,1780707039000,-500.0,0.00013425,2]
[424254843,1780707039000,-613.0,0.00013425,2]
[424254846,1780707039000,-613.0,0.00013425,2]
[424254856,1780707039000,-150.0,0.00013425,2]
[424254845,1780707039000,-625.0,0.00013425,2]
[424254847,1780707039000,-500.0,0.00013425,2]
[424254852,1780707039000,-377.3199682,0.00013425,2]
[424254853,1780707039000,-613.0,0.00013425,2]
[424254850,1780707039000,-500.0,0.00013425,2]
[424254821,1780707039000,-625.0,0.00013425,2]
[424254832,1780707039000,-613.0,0.00013425,2]
[424254823,1780707039000,-150.0,0.00013425,2]
[424254801,1780707039000,-180.82,0.00013365,2]
[424254816,1780707039000,-613.0,0.00013425,2]
[424254849,1780707039000,-613.0,0.00013425,2]
[424254792,1780707039000,-180.82,0.00012337,2]
[424254802,1780707039000,-218.70520512,0.00013425,2]
[424254797,1780707039000,-180.82,0.00012851,2]
[424254795,1780707039000,-6553.06,0.00012551,2]
[424254793,1780707039000,-75020.91420834,0.00012338,2]
[424254796,1780707039000,-166.66,0.00012837,2]
[424254800,1780707039000,-2000.0,0.000133,2]
[424254799,1780707039000,-166.66,0.00013223,2]
[424254798,1780707039000,-1252.0,0.00013122,2]
[424254803,1780707039000,-150.0,0.00013425,2]
[424254805,1780707039000,-613.0,0.00013425,2]
[424254807,1780707039000,-625.0,0.00013425,2]
[424254819,1780707039000,-500.0,0.00013425,2]
[424254811,1780707039000,-500.0,0.00013425,2]
[424254815,1780707039000,-500.0,0.00013425,2]
[424254814,1780707039000,-625.0,0.00013425,2]
[424254809,1780707039000,-613.0,0.00013425,2]
[424254806,1780707039000,-613.0,0.00013425,2]
[424254808,1780707039000,-150.0,0.00013425,2]
[424254812,1780707039000,-150.0,0.00013425,2]
[424254810,1780707039000,-625.0,0.00013425,2]
[424254813,1780707039000,-613.0,0.00013425,2]
[424254817,1780707039000,-193.76494927,0.00013425,2]
[424254829,1780707039000,-625.0,0.00013425,2]